fUST/lending_fUST_20250223
["ID","MTS","AMOUNT","RATE_DAILY","PERIOD"]
[354160302,1740301845353,-500.0,0.00014438,2]
[354160303,1740301845362,-500.0,0.00014438,2]
[354160304,1740301845372,-500.0,0.00014438,2]
[354160305,1740301845381,-500.0,0.00014438,2]
[354160306,1740301845391,-325.38,0.00014438,2]
[354160307,1740301845401,-813.1,0.00014438,2]
[354160308,1740301845411,-316.9,0.00014438,2]
[354160309,1740301845420,-500.0,0.00014438,2]
[354160310,1740301845429,-570.8,0.00014438,2]
[354160311,1740301845439,-4432.49,0.00014438,2]
[354160313,1740301845448,-500.0,0.00014438,2]
[354160315,1740301845457,-500.0,0.00014438,2]
[354160316,1740301845467,-505.7,0.00014438,2]
[354160318,1740301845477,-1623.47,0.00014438,2]
[354160319,1740301845488,-8302.59,0.00014438,2]
[354160320,1740301845498,-3032.66,0.00014438,2]
[354160321,1740301845507,-500.0,0.00014438,2]
[354160322,1740301845518,-944.55,0.00014438,2]
[354160323,1740301845528,-2235.93,0.00014438,2]
[354160324,1740301845538,-500.0,0.00014438,2]
[354160325,1740301845548,-602.86,0.00014438,2]
[354160327,1740301845557,-993.87,0.00014438,2]
[354160329,1740301845567,-500.0,0.00014438,2]
[354160330,1740301845576,-593.61,0.00014438,2]
[354160331,1740301845586,-12924.89674434,0.00014482,2]
[354160332,1740301845595,-222.32962,0.00014482,2]
[354160333,1740301845604,-151.0,0.00014482,2]
[354160335,1740301845614,-151.0,0.000145,2]
[354160337,1740301845623,-467130.22111496,0.000145,5]
[354160338,1740301845644,-44239.52452312,0.000145,5]
[354160340,1740301845665,-72316.53267729,0.000145,5]
[354160343,1740301845740,-500.0,0.00013698,2]
[354160344,1740301845750,-62509.18322989,0.000145,5]
[354160345,1740301845763,-811.9559,0.000145,5]
[354160347,1740301845774,-205341.01907536,0.000145,5]
[354160372,1740302782924,262.822594,9.041e-05,2]
[354160429,1740303032348,-166.7440985,0.00013662,2]
[354160430,1740303032358,-500.0,0.00013698,2]
[354160431,1740303032367,-161.482048,0.00013699,2]
[354160432,1740303032376,-318.980456,0.00013699,2]
[354160433,1740303032386,-300.0,0.0001376,2]
[354160434,1740303032395,-192.00544751,0.00013761,2]
[354160435,1740303032406,-307.99455249,0.00013761,2]
[354160436,1740303032415,-500.0,0.00013761,2]
[354160437,1740303032423,-500.0,0.00013761,2]
[354160438,1740303032433,-1014.2,0.00013761,2]
[354160439,1740303032442,-500.0,0.00013761,2]
[354160440,1740303032452,-500.0,0.00013761,2]
[354160441,1740303032461,-500.0,0.00013761,2]
[354160443,1740303032471,-500.0,0.00013761,2]
[354160445,1740303032480,-500.0,0.00013761,2]
[354160447,1740303032490,-500.0,0.00013761,2]
[354160449,1740303032499,-500.0,0.00013761,2]
[354160451,1740303032509,-500.0,0.00013761,2]
[354160453,1740303032518,-565.93,0.00013761,2]
[354160455,1740303032527,-500.0,0.00013761,2]
[354160457,1740303032536,-500.0,0.00013761,2]
[354160459,1740303032546,-500.0,0.00013761,2]
[354160460,1740303032555,-3144.23,0.00013761,2]
[354160461,1740303032565,-500.0,0.00013761,2]
[354160462,1740303032574,-500.0,0.00013761,2]
[354160463,1740303032584,-500.0,0.00013761,2]
[354160464,1740303032593,-5869.16,0.00013761,2]
[354160465,1740303032603,-1074.18,0.00013761,2]
[354160466,1740303032612,-500.0,0.00013761,2]
[354160467,1740303032621,-500.0,0.00013761,2]
[354160468,1740303032630,-1304.29,0.00013761,2]
[354160469,1740303032639,-2165.9,0.00013761,2]
[354160470,1740303032649,-702.81,0.00013761,2]
[354160471,1740303032658,-500.0,0.00013761,2]
[354160472,1740303032667,-663.01,0.00013761,2]
[354160473,1740303032681,-500.0,0.00013761,2]
[354160474,1740303032690,-500.0,0.00013761,2]
[354160475,1740303032700,-500.0,0.00013762,2]
[354160476,1740303032710,-503.02498034,0.00013762,2]
[354160477,1740303032719,-506.99738637,0.00013762,5]
[354160478,1740303032728,-502.15825082,0.00013762,2]
[354160479,1740303032738,-501.89946927,0.00013762,2]
[354160480,1740303032748,-337.99117694,0.00013762,2]
[354160481,1740303032758,-502.30954638,0.00013762,2]
[354160482,1740303032768,-501.26518634,0.00013762,2]
[354160483,1740303032777,-501.50690427,0.00013762,2]
[354160484,1740303032788,-501.51327035,0.00013762,2]
[354160485,1740303032798,-500.0,0.00013762,2]
[354160486,1740303032807,-511.83720458,0.00013762,2]
[354160487,1740303032817,-502.68291101,0.00013762,2]
[354160488,1740303032827,-502.30448695,0.00013762,2]
[354160489,1740303032837,-502.36137601,0.00013762,2]
[354160490,1740303032846,-503.68811393,0.00013762,2]
[354160491,1740303032855,-501.38811267,0.00013762,2]
[354160492,1740303032865,-502.55062878,0.00013762,2]
[354160493,1740303032875,-238.45462893,0.00013762,2]
[354160494,1740303032885,-501.78541349,0.00013762,2]
[354160495,1740303032895,-502.67921079,0.00013762,2]
[354160496,1740303032905,-500.0,0.00013762,2]
[354160497,1740303032915,-500.0,0.00013762,2]
[354160498,1740303032924,-508.63130741,0.00013762,2]
[354160499,1740303032933,-512.64568357,0.00013762,2]
[354160500,1740303032943,-500.0,0.00013762,2]
[354160501,1740303032952,-504.34217252,0.00013762,2]
[354160502,1740303032959,-500.0,0.00013762,2]
[354160503,1740303032969,-500.0,0.00013762,2]
[354160504,1740303032978,-500.0,0.00013762,2]
[354160505,1740303032988,-500.0,0.00013762,2]
[354160506,1740303032997,-500.0,0.00013762,2]
[354160507,1740303033007,-254.34,0.00013762,2]
[354160508,1740303033016,-511.58096748,0.00013762,2]
[354160509,1740303033025,-500.0,0.0001378,2]
[354160510,1740303033034,-500.0,0.00013843,2]
[354160511,1740303033044,-500.0,0.00013843,2]
[354160512,1740303033054,-500.0,0.00013843,2]
[354160513,1740303033063,-1014.2,0.00013843,2]
[354160514,1740303033072,-500.0,0.00013843,2]
[354160515,1740303033082,-500.0,0.00013843,2]
[354160516,1740303033092,-500.0,0.00013843,2]
[354160517,1740303033102,-500.0,0.00013843,2]
[354160518,1740303033111,-500.0,0.00013843,2]
[354160519,1740303033121,-500.0,0.00013843,2]
[354160520,1740303033131,-500.0,0.00013843,2]
[354160521,1740303033141,-500.0,0.00013843,2]
[354160522,1740303033150,-565.93,0.00013843,2]
[354160523,1740303033160,-500.0,0.00013843,2]
[354160524,1740303033169,-500.0,0.00013843,2]
[354160525,1740303033179,-500.0,0.00013843,2]
[354160526,1740303033192,-3144.23,0.00013843,2]
[354160527,1740303033202,-500.0,0.00013843,2]
[354160528,1740303033212,-500.0,0.00013843,2]
[354160529,1740303033222,-500.0,0.00013843,2]
[354160530,1740303033232,-5869.16,0.00013843,2]
[354160531,1740303033242,-1074.18,0.00013843,2]
[354160532,1740303033251,-500.0,0.00013843,2]
[354160533,1740303033261,-500.0,0.00013843,2]
[354160534,1740303033271,-1304.29,0.00013843,2]
[354160535,1740303033280,-2165.9,0.00013843,2]
[354160536,1740303033290,-702.81,0.00013843,2]
[354160537,1740303033299,-500.0,0.00013843,2]
[354160538,1740303033309,-663.01,0.00013843,2]
[354160539,1740303033320,-500.0,0.00013843,2]
[354160540,1740303033330,-500.0,0.00013843,2]
[354160541,1740303033340,-500.0,0.00013844,2]
[354160542,1740303033350,-500.0,0.00013844,2]
[354160543,1740303033359,-139.52399981,0.00013844,2]
[354160544,1740303033372,-360.47600019,0.00013844,2]
[354160545,1740303033382,-345.14602187,0.00013844,2]
[354160546,1740303033391,-500.0,0.00013844,2]
[354160547,1740303033401,-243.01779318,0.00013844,2]
[354160548,1740303033411,-500.0,0.00013844,2]
[354160549,1740303033421,-500.0,0.00013844,2]
[354160550,1740303033431,-500.0,0.00013863,2]
[354160551,1740303033440,-197.30142,0.00013925,2]
[354160552,1740303033450,-500.0,0.00013925,2]
[354160553,1740303033460,-500.0,0.00013925,2]
[354160554,1740303033470,-485.8270837,0.00013925,2]
[354160555,1740303033480,-572.52115138,0.00013925,2]
[354160556,1740303033490,-500.0,0.00013926,2]
[354160557,1740303033502,-500.0,0.00013926,2]
[354160558,1740303033512,-500.0,0.00013926,2]
[354160559,1740303033522,-1014.2,0.00013926,2]
[354160560,1740303033531,-500.0,0.00013926,2]
[354160561,1740303033542,-500.0,0.00013926,2]
[354160562,1740303033552,-500.0,0.00013926,2]
[354160563,1740303033562,-592.4713159,0.00013926,2]
[354160564,1740303033572,-500.0,0.00013926,2]
[354160565,1740303033582,-500.0,0.00013926,2]
[354160566,1740303033592,-500.0,0.00013926,2]
[354160567,1740303033601,-565.93,0.00013926,2]
[354160568,1740303033610,-500.0,0.00013926,2]
[354160569,1740303033731,-500.0,0.00013926,2]
[354160570,1740303033741,-500.0,0.00013926,2]
[354160571,1740303033753,-3144.23,0.00013926,2]
[354160572,1740303033763,-500.0,0.00013926,2]
[354160573,1740303033773,-500.0,0.00013926,2]
[354160574,1740303033783,-5869.16,0.00013926,2]
[354160575,1740303033792,-1074.18,0.00013926,2]
[354160576,1740303033802,-500.0,0.00013926,2]
[354160577,1740303033812,-500.0,0.00013926,2]
[354160578,1740303033822,-1304.29,0.00013926,2]
[354160579,1740303033831,-2165.9,0.00013926,2]
[354160580,1740303033842,-702.81,0.00013926,2]
[354160581,1740303033852,-500.0,0.00013926,2]
[354160582,1740303033862,-663.01,0.00013926,2]
[354160583,1740303033872,-500.0,0.00013926,2]
[354160584,1740303033882,-500.0,0.00013926,2]
[354160585,1740303033892,-500.0,0.00013927,2]
[354160586,1740303033902,-500.0,0.00013927,2]
[354160587,1740303033912,-500.0,0.00013927,2]
[354160588,1740303033922,-500.0,0.00013927,2]
[354160589,1740303033932,-500.0,0.00013945,2]
[354160590,1740303033942,-500.0,0.00014008,2]
[354160591,1740303033951,-500.0,0.00014008,2]
[354160592,1740303033961,-1014.2,0.00014008,2]
[354160593,1740303033971,-500.0,0.00014008,2]
[354160594,1740303033982,-500.0,0.00014008,2]
[354160595,1740303033991,-447.0169891,0.00014008,2]
[354160596,1740303034001,-500.0,0.00014008,2]
[354160597,1740303034010,-565.93,0.00014008,2]
[354160598,1740303034019,-350.48,0.00014008,2]
[354160599,1740303034029,-500.0,0.00014008,2]
[354160600,1740303034038,-323.86,0.00014008,2]
[354160601,1740303034048,-608.0421467,0.00014008,2]
[354160639,1740303038225,-1589.258305,0.00014008,2]
[354160706,1740303040607,-946.9295483,0.00014008,2]
[354160707,1740303040618,-500.0,0.00014008,2]
[354160708,1740303040627,-5869.16,0.00014008,2]
[354160709,1740303040637,-1074.18,0.00014008,2]
[354160710,1740303040646,-500.0,0.00014008,2]
[354160711,1740303040655,-1304.29,0.00014008,2]
[354160712,1740303040665,-2165.9,0.00014008,2]
[354160713,1740303040678,-702.81,0.00014008,2]
[354160714,1740303040688,-500.0,0.00014008,2]
[354160715,1740303040697,-663.01,0.00014008,2]
[354160716,1740303040707,-500.0,0.00014008,2]
[354160717,1740303040718,-500.0,0.00014009,2]
[354160718,1740303040728,-500.0,0.00014009,2]
[354160719,1740303040737,-500.0,0.00014009,2]
[354160720,1740303040748,-500.0,0.0001409,2]
[354160721,1740303040757,-500.0,0.0001409,2]
[354160722,1740303040766,-1014.2,0.0001409,2]
[354160723,1740303040775,-500.0,0.0001409,2]
[354160724,1740303040784,-500.0,0.0001409,2]
[354160725,1740303040794,-500.0,0.0001409,2]
[354160726,1740303040803,-565.93,0.0001409,2]
[354160727,1740303040812,-500.0,0.0001409,2]
[354160728,1740303040822,-3144.23,0.0001409,2]
[354160729,1740303040831,-500.0,0.0001409,2]
[354160730,1740303040840,-5869.16,0.0001409,2]
[354160731,1740303040850,-1074.18,0.0001409,2]
[354160732,1740303040859,-316.37,0.0001409,2]
[354160733,1740303040869,-1304.29,0.0001409,2]
[354160734,1740303040878,-2165.9,0.0001409,2]
[354160735,1740303040888,-702.81,0.0001409,2]
[354160736,1740303040897,-663.01,0.0001409,2]
[354160737,1740303040908,-500.0,0.0001409,2]
[354160738,1740303040918,-500.0,0.00014091,2]
[354160739,1740303040927,-500.0,0.00014091,2]
[354160740,1740303040937,-500.0,0.00014091,2]
[354160741,1740303040947,-150.0,0.00014115,4]
[354160742,1740303040956,-12370.33574497,0.00014126,2]
[354160743,1740303040966,-500.0,0.00014164,2]
[354160744,1740303040975,-500.0,0.00014172,2]
[354160745,1740303040984,-500.0,0.00014172,2]
[354160746,1740303040994,-1014.2,0.00014172,2]
[354160747,1740303041003,-500.0,0.00014172,2]
[354160748,1740303041013,-500.0,0.00014172,2]
[354160749,1740303041022,-500.0,0.00014172,2]
[354160750,1740303041032,-565.93,0.00014172,2]
[354160751,1740303041042,-500.0,0.00014172,2]
[354160752,1740303041052,-3144.23,0.00014172,2]
[354160753,1740303041062,-500.0,0.00014172,2]
[354160754,1740303041071,-5869.16,0.00014172,2]
[354160755,1740303041080,-1074.18,0.00014172,2]
[354160756,1740303041089,-1304.29,0.00014172,2]
[354160757,1740303041099,-2165.9,0.00014172,2]
[354160758,1740303041109,-702.81,0.00014172,2]
[354160759,1740303041118,-663.01,0.00014172,2]
[354160760,1740303041128,-255.62,0.00014172,2]
[354160761,1740303041137,-500.0,0.00014173,2]
[354160762,1740303041147,-500.0,0.00014173,2]
[354160763,1740303041157,-500.0,0.00014173,2]
[354160764,1740303041167,-500.0,0.00014254,2]
[354160765,1740303041176,-500.0,0.00014254,2]
[354160766,1740303041186,-1014.2,0.00014254,2]
[354160767,1740303041196,-500.0,0.00014254,2]
[354160768,1740303041205,-500.0,0.00014254,2]
[354160769,1740303041215,-500.0,0.00014254,2]
[354160770,1740303041224,-565.93,0.00014254,2]
[354160771,1740303041233,-500.0,0.00014254,2]
[354160772,1740303041244,-3144.23,0.00014254,2]
[354160773,1740303041253,-500.0,0.00014254,2]
[354160774,1740303041263,-5869.16,0.00014254,2]
[354160775,1740303041272,-1074.18,0.00014254,2]
[354160776,1740303041281,-1304.29,0.00014254,2]
[354160777,1740303041291,-2165.9,0.00014254,2]
[354160778,1740303041300,-702.81,0.00014254,2]
[354160779,1740303041310,-663.01,0.00014254,2]
[354160780,1740303041320,-500.0,0.00014255,2]
[354160781,1740303041330,-388.28,0.00014255,2]
[354160782,1740303041339,-500.0,0.00014255,2]
[354160783,1740303041349,-151.0,0.000143,2]
[354160784,1740303041359,-151.0,0.000143,2]
[354160785,1740303041368,-500.0,0.00014336,2]
[354160786,1740303041377,-500.0,0.00014336,2]
[354160787,1740303041387,-1014.2,0.00014336,2]
[354160788,1740303041396,-500.0,0.00014336,2]
[354160789,1740303041406,-636.53,0.00014336,2]
[354160790,1740303041415,-500.0,0.00014336,2]
[354160791,1740303041425,-565.93,0.00014336,2]
[354160792,1740303041434,-500.0,0.00014336,2]
[354160793,1740303041444,-3144.23,0.00014336,2]
[354160794,1740303041453,-500.0,0.00014336,2]
[354160795,1740303041462,-5869.16,0.00014336,2]
[354160796,1740303041472,-1074.18,0.00014336,2]
[354160797,1740303041481,-1304.29,0.00014336,2]
[354160798,1740303041491,-2165.9,0.00014336,2]
[354160799,1740303041500,-702.81,0.00014336,2]
[354160800,1740303041509,-663.01,0.00014336,2]
[354160801,1740303041519,-500.0,0.00014338,2]
[354160802,1740303041529,-500.0,0.00014338,2]
[354160803,1740303041538,-3000.0,0.000144,2]
[354160804,1740303041547,-3000.0,0.000144,2]
[354160805,1740303041557,-151.0,0.000144,2]
[354160806,1740303041566,-151.0,0.000144,2]
[354160807,1740303041575,-8630.71077294,0.000144,2]
[354160808,1740303041584,-151.0,0.000144,2]
[354160809,1740303041593,-151.0,0.000144,2]
[354160810,1740303041602,-4263.26459679,0.000144,2]
[354160811,1740303041611,-500.0,0.00014419,2]
[354160812,1740303041620,-500.0,0.00014419,2]
[354160813,1740303041629,-1014.2,0.00014419,2]
[354160814,1740303041638,-500.0,0.00014419,2]
[354160815,1740303041648,-500.0,0.00014419,2]
[354160816,1740303041657,-565.93,0.00014419,2]
[354160817,1740303041667,-500.0,0.00014419,2]
[354160818,1740303041681,-3144.23,0.00014419,2]
[354160819,1740303041690,-328.33540401,0.00014419,2]
[354160820,1740303041699,-5869.16,0.00014419,2]
[354160821,1740303041708,-1074.18,0.00014419,2]
[354160822,1740303041718,-1304.29,0.00014419,2]
[354160823,1740303041728,-2165.9,0.00014419,2]
[354160824,1740303041737,-702.81,0.00014419,2]
[354160825,1740303041748,-663.01,0.00014419,2]
[354160826,1740303041758,-500.0,0.0001442,2]
[354160827,1740303041768,-500.0,0.0001442,2]
[354160828,1740303041777,-207.77309453,0.0001448,2]
[354160829,1740303041787,-12924.89674434,0.00014481,2]
[354160830,1740303041796,-502.53959665,0.00014482,2]
[354160831,1740303041805,-500.0,0.00014499,2]
[354160832,1740303041814,-176.88698061,0.00014499,2]
[354160833,1740303041823,-17586.53405729,0.000145,5]
[354160834,1740303041832,-2195.12031992,0.000145,5]
[354160835,1740303041841,-15256.99221501,0.000145,5]
[354160870,1740304204626,258.949228,9.041e-05,2]
[354160917,1740304232570,-1074.8985,0.00012884,2]
[354160918,1740304232582,-6719.4626928,0.00012884,2]
[354160919,1740304232591,-161.482048,0.00013699,2]
[354160920,1740304232600,-159.490228,0.00013699,2]
[354160921,1740304232610,-500.0,0.00013841,2]
[354160922,1740304232621,-500.0,0.00013841,2]
[354160923,1740304232631,-500.0,0.00013841,2]
[354160924,1740304232643,-883.31,0.00013841,2]
[354160925,1740304232653,-500.0,0.00013841,2]
[354160926,1740304232662,-500.0,0.00013841,2]
[354160927,1740304232672,-500.0,0.00013841,2]
[354160928,1740304232682,-2659.65,0.00013841,2]
[354160929,1740304232691,-500.0,0.00013841,2]
[354160930,1740304232701,-500.0,0.00013841,2]
[354160931,1740304232710,-5135.52,0.00013841,2]
[354160932,1740304232719,-500.0,0.00013841,2]
[354160933,1740304232727,-500.0,0.00013841,2]
[354160934,1740304232736,-1437.80181954,0.00013841,2]
[354160966,1740304238292,-457.36818046,0.00013841,2]
[354160968,1740304238302,-939.91,0.00013841,2]
[354160970,1740304238311,-36.28148454,0.00013841,2]
[354161084,1740304240709,-463.71851546,0.00013841,2]
[354161085,1740304240719,-1141.25,0.00013841,2]
[354161086,1740304240729,-500.0,0.00013841,2]
[354161087,1740304240738,-614.96,0.00013841,2]
[354161088,1740304240747,-580.14,0.00013841,2]
[354161089,1740304240757,-500.0,0.00013842,2]
[354161090,1740304240767,-500.0,0.00013842,2]
[354161091,1740304240777,-500.0,0.00013923,2]
[354161092,1740304240787,-500.0,0.00013923,2]
[354161093,1740304240796,-500.0,0.00013923,2]
[354161094,1740304240806,-883.31,0.00013923,2]
[354161095,1740304240816,-500.0,0.00013923,2]
[354161096,1740304240825,-500.0,0.00013923,2]
[354161097,1740304240834,-500.0,0.00013923,2]
[354161098,1740304240844,-2659.65,0.00013923,2]
[354161099,1740304240854,-500.0,0.00013923,2]
[354161100,1740304240864,-500.0,0.00013923,2]
[354161101,1740304240874,-5135.52,0.00013923,2]
[354161102,1740304240883,-500.0,0.00013923,2]
[354161103,1740304240893,-316.37,0.00013923,2]
[354161104,1740304240903,-1895.17,0.00013923,2]
[354161105,1740304240912,-939.91,0.00013923,2]
[354161106,1740304240923,-1141.25,0.00013923,2]
[354161107,1740304240933,-500.0,0.00013923,2]
[354161109,1740304240942,-614.96,0.00013923,2]
[354161110,1740304240951,-580.14,0.00013923,2]
[354161111,1740304240960,-500.0,0.00013924,2]
[354161112,1740304240969,-500.0,0.00013924,2]
[354161113,1740304240979,-255.62,0.00014006,2]
[354161114,1740304240988,-500.0,0.00014006,2]
[354161115,1740304240997,-500.0,0.00014006,2]
[354161116,1740304241007,-883.31,0.00014006,2]
[354161117,1740304241016,-500.0,0.00014006,2]
[354161118,1740304241026,-500.0,0.00014006,2]
[354161119,1740304241035,-500.0,0.00014006,2]
[354161120,1740304241045,-2659.65,0.00014006,2]
[354161121,1740304241059,-500.0,0.00014006,2]
[354161122,1740304241068,-500.0,0.00014006,2]
[354161123,1740304241078,-5135.52,0.00014006,2]
[354161124,1740304241186,-500.0,0.00014006,2]
[354161125,1740304241198,-1895.17,0.00014006,2]
[354161126,1740304241208,-939.91,0.00014006,2]
[354161127,1740304241218,-1141.25,0.00014006,2]
[354161128,1740304241228,-500.0,0.00014006,2]
[354161129,1740304241237,-614.96,0.00014006,2]
[354161130,1740304241247,-580.14,0.00014006,2]
[354161131,1740304241256,-500.0,0.00014007,2]
[354161132,1740304241266,-500.0,0.00014007,2]
[354161133,1740304241275,-500.0,0.00014088,2]
[354161134,1740304241285,-500.0,0.00014088,2]
[354161135,1740304241294,-883.31,0.00014088,2]
[354161136,1740304241303,-500.0,0.00014088,2]
[354161137,1740304241313,-636.53,0.00014088,2]
[354161138,1740304241322,-500.0,0.00014088,2]
[354161139,1740304241331,-2659.65,0.00014088,2]
[354161140,1740304241340,-500.0,0.00014088,2]
[354161141,1740304241350,-500.0,0.00014088,2]
[354161142,1740304241360,-5135.52,0.00014088,2]
[354161143,1740304241370,-500.0,0.00014088,2]
[354161144,1740304241380,-1895.17,0.00014088,2]
[354161145,1740304241390,-939.91,0.00014088,2]
[354161146,1740304241399,-1141.25,0.00014088,2]
[354161147,1740304241408,-500.0,0.00014088,2]
[354161148,1740304241417,-614.96,0.00014088,2]
[354161149,1740304241427,-580.14,0.00014088,2]
[354161150,1740304241436,-388.28,0.00014089,2]
[354161151,1740304241446,-500.0,0.00014089,2]
[354161152,1740304241456,-150.0,0.00014105,4]
[354161153,1740304241466,-500.0,0.00014164,2]
[354161154,1740304241475,-165.09189819,0.00014169,2]
[354161155,1740304241485,-500.0,0.0001417,2]
[354161156,1740304241495,-500.0,0.0001417,2]
[354161157,1740304241504,-883.31,0.0001417,2]
[354161158,1740304241514,-500.0,0.0001417,2]
[354161159,1740304241523,-500.0,0.0001417,2]
[354161160,1740304241533,-2659.65,0.0001417,2]
[354161161,1740304241542,-500.0,0.0001417,2]
[354161162,1740304241552,-500.0,0.0001417,2]
[354161163,1740304241561,-5135.52,0.0001417,2]
[354161164,1740304241571,-500.0,0.0001417,2]
[354161165,1740304241580,-1895.17,0.0001417,2]
[354161166,1740304241590,-939.91,0.0001417,2]
[354161167,1740304241600,-1141.25,0.0001417,2]
[354161168,1740304241610,-500.0,0.0001417,2]
[354161169,1740304241620,-614.96,0.0001417,2]
[354161170,1740304241629,-580.14,0.0001417,2]
[354161171,1740304241640,-500.0,0.00014171,2]
[354161172,1740304241649,-12370.33574497,0.00014187,2]
[354161173,1740304241658,-500.0,0.00014252,2]
[354161174,1740304241668,-500.0,0.00014252,2]
[354161175,1740304241678,-883.31,0.00014252,2]
[354161176,1740304241688,-500.0,0.00014252,2]
[354161177,1740304241698,-500.0,0.00014252,2]
[354161178,1740304241707,-2659.65,0.00014252,2]
[354161179,1740304241716,-328.33540401,0.00014252,2]
[354161180,1740304241726,-500.0,0.00014252,2]
[354161181,1740304241735,-5135.52,0.00014252,2]
[354161182,1740304241745,-500.0,0.00014252,2]
[354161183,1740304241755,-1895.17,0.00014252,2]
[354161184,1740304241764,-939.91,0.00014252,2]
[354161185,1740304241773,-1141.25,0.00014252,2]
[354161186,1740304241782,-500.0,0.00014252,2]
[354161187,1740304241791,-614.96,0.00014252,2]
[354161188,1740304241801,-580.14,0.00014252,2]
[354161189,1740304241811,-500.0,0.00014253,2]
[354161190,1740304241821,-513.7837145,0.00014334,2]
[354161191,1740304241830,-500.0,0.00014334,2]
[354161192,1740304241840,-883.31,0.00014334,2]
[354161193,1740304241849,-500.0,0.00014334,2]
[354161194,1740304241859,-367.54,0.00014334,2]
[354161195,1740304241869,-2659.65,0.00014334,2]
[354161196,1740304241878,-500.0,0.00014334,2]
[354161197,1740304241888,-5135.52,0.00014334,2]
[354161198,1740304241898,-500.0,0.00014334,2]
[354161199,1740304241907,-1895.17,0.00014334,2]
[354161200,1740304241917,-939.91,0.00014334,2]
[354161201,1740304241927,-1141.25,0.00014334,2]
[354161202,1740304241937,-500.0,0.00014334,2]
[354161203,1740304241947,-614.96,0.00014334,2]
[354161204,1740304241956,-580.14,0.00014334,2]
[354161205,1740304241966,-369.19,0.00014335,2]
[354161206,1740304241975,-12924.89674434,0.00014359,2]
[354161207,1740304241984,-216.836,0.00014376,2]
[354161208,1740304241994,-3000.0,0.000144,2]
[354161209,1740304242003,-3000.0,0.000144,2]
[354161210,1740304242013,-151.0,0.000144,2]
[354161211,1740304242022,-151.0,0.000144,2]
[354161212,1740304242031,-2500.0,0.000144,2]
[354161213,1740304242040,-4263.26459679,0.000144,2]
[354161214,1740304242053,-500.0,0.00014416,2]
[354161215,1740304242063,-883.31,0.00014416,2]
[354161216,1740304242075,-500.0,0.00014416,2]
[354161217,1740304242085,-2659.65,0.00014416,2]
[354161218,1740304242095,-500.0,0.00014416,2]
[354161219,1740304242104,-5135.52,0.00014416,2]
[354161220,1740304242113,-500.0,0.00014416,2]
[354161221,1740304242123,-1895.17,0.00014416,2]
[354161222,1740304242133,-939.91,0.00014416,2]
[354161223,1740304242143,-1141.25,0.00014416,2]
[354161224,1740304242152,-500.0,0.00014416,2]
[354161225,1740304242162,-614.96,0.00014416,2]
[354161226,1740304242172,-580.14,0.00014416,2]
[354161227,1740304242182,-207.26726274,0.00014494,2]
[354161228,1740304242191,-203.06609418,0.00014499,2]
[354161229,1740304242202,-500.0,0.00014499,2]
[354161230,1740304242211,-883.31,0.00014499,2]
[354161231,1740304242221,-500.0,0.00014499,2]